bitfinex-derivatives/quotes_BTCF0:USTF0_20251030
["timestamp","ask_amount","ask_price","bid_price","bid_amount"]
[1761834192158,1.07680944,107970.0,107960.0,0.03023845]
[1761834192355,1.06680944,107970.0,107960.0,0.07989189]
[1761834192558,0.96680944,107970.0,107960.0,0.07989189]
[1761834192771,0.97680944,107970.0,107960.0,0.07989189]
[1761834193068,0.96680944,107970.0,107960.0,0.10404421]
[1761834193268,0.96680944,107970.0,107960.0,0.08746728]
[1761834193269,0.97680944,107970.0,107960.0,0.08746728]
[1761834193665,0.96680944,107970.0,107960.0,0.08746728]
[1761834193969,1.49067301,107970.0,107960.0,0.08746728]
[1761834194175,1.49343301,107970.0,107960.0,0.08746728]
[1761834194563,1.48067301,107970.0,107960.0,0.08746728]
[1761834194760,1.38067301,107970.0,107960.0,0.08746728]
[1761834195664,1.39343301,107970.0,107960.0,0.08746728]
[1761834195869,1.39343301,107970.0,107960.0,0.05439077]
[1761834196063,1.38343301,107970.0,107960.0,0.05439077]
[1761834196266,1.47067301,107970.0,107960.0,0.08746728]
[1761834196570,1.06680944,107970.0,107960.0,0.07633077]
[1761834196770,1.06680944,107970.0,107960.0,0.12408541]
[1761834196958,0.96680944,107970.0,107960.0,0.11903217]
[1761834197560,0.96680944,107970.0,107960.0,0.15210868]
[1761834197757,0.96680944,107970.0,107960.0,0.09187985]
[1761834198356,0.96680944,107970.0,107960.0,0.0934255]
[1761834198763,0.34600944,107970.0,107960.0,0.0934255]
[1761834199962,0.37600944,107970.0,107960.0,0.0934255]
[1761834200161,0.37600944,107970.0,107960.0,0.4542255]
[1761834200456,0.37600944,107970.0,107960.0,0.0934255]
[1761834200665,0.34600944,107970.0,107960.0,0.0934255]
[1761834200970,0.37632944,107970.0,107960.0,0.0934255]
[1761834201172,0.36632944,107970.0,107960.0,0.0934255]
[1761834201373,0.36616944,107970.0,107960.0,0.0934255]
[1761834201971,0.37616944,107970.0,107960.0,0.0934255]
[1761834202567,0.85696944,107970.0,107960.0,0.0934255]
[1761834203168,0.68696944,107970.0,107960.0,0.0934255]
[1761834203473,1.02696944,107970.0,107960.0,0.0934255]
[1761834203867,0.34616944,107970.0,107960.0,0.0934255]
[1761834204268,0.34604944,107970.0,107960.0,0.0934255]
[1761834204571,0.87684944,107970.0,107960.0,0.0934255]
[1761834204768,1.29071301,107970.0,107960.0,0.0287841]
[1761834204968,1.30347301,107970.0,107960.0,0.0287841]
[1761834205165,1.30347301,107970.0,107960.0,0.0158941]
[1761834205374,1.30347301,107970.0,107940.0,0.01289]
[1761834205569,0.76466357,107950.0,107940.0,0.01289]
[1761834205774,1.39975301,107950.0,107940.0,0.01289]
[1761834205973,1.39975301,107950.0,107940.0,0.03574]
[1761834206475,0.99588944,107950.0,107940.0,0.03574]
[1761834206673,2.37331301,107950.0,107940.0,0.01289]
[1761834206875,1.76331301,107950.0,107940.0,0.01289]
[1761834207080,1.45668944,107950.0,107940.0,0.03574]
[1761834207376,1.76055301,107950.0,107940.0,0.03574]
[1761834207575,1.76055301,107950.0,107940.0,0.01289]
[1761834207780,1.77055301,107950.0,107940.0,0.01289]
[1761834208075,1.77055301,107950.0,107940.0,0.01489]
[1761834208469,1.35668944,107950.0,107940.0,0.01489]
[1761834208678,1.76155301,107950.0,107940.0,0.01489]
[1761834208870,1.35768944,107950.0,107940.0,0.03574]
[1761834209072,1.35768944,107950.0,107940.0,0.01289]
[1761834209275,1.77155301,107950.0,107940.0,0.01289]
[1761834209568,1.76155301,107950.0,107940.0,0.01289]
[1761834209773,1.77155301,107950.0,107940.0,0.01289]
[1761834211077,1.76155301,107950.0,107940.0,0.01289]
[1761834211276,1.76155301,107950.0,107940.0,0.01415678]
[1761834211480,1.77155301,107950.0,107940.0,0.01415678]
[1761834211683,1.7927831,107950.0,107940.0,0.01415678]
[1761834212175,2.0827831,107950.0,107940.0,0.01415678]
[1761834212378,2.1855431,107950.0,107940.0,0.00126678]
[1761834212581,2.1855431,107950.0,107920.0,0.01299163]
[1761834212880,0.76466357,107930.0,107920.0,0.03268303]
[1761834213079,1.38372576,107930.0,107920.0,0.03268303]
[1761834213376,0.34508944,107930.0,107920.0,0.07716303]
[1761834213579,0.61508944,107930.0,107920.0,0.07716303]
[1761834213782,0.97588944,107930.0,107920.0,0.07716303]
[1761834214372,0.97588944,107930.0,107920.0,0.08116303]
[1761834214672,1.37975301,107930.0,107920.0,0.08116303]
[1761834214874,1.37975301,107930.0,107920.0,0.01699163]
[1761834215074,1.37975301,107930.0,107920.0,0.01299163]
[1761834215276,1.39874235,107930.0,107920.0,0.01899163]
[1761834215574,1.38874235,107930.0,107920.0,0.01899163]
[1761834215765,1.38874235,107930.0,107920.0,0.03984163]
[1761834215971,0.98487878,107930.0,107920.0,0.06347163]
[1761834216978,1.08487878,107930.0,107920.0,0.06347163]
[1761834217275,1.24789795,107930.0,107920.0,0.06347163]
[1761834217680,1.22659344,107930.0,107920.0,0.06347163]
[1761834218180,0.98491878,107930.0,107920.0,0.06347163]
[1761834218575,0.65983878,107930.0,107920.0,0.08316303]
[1761834218777,0.98491878,107930.0,107920.0,0.08316303]
[1761834218974,1.22663344,107930.0,107920.0,0.08316303]
[1761834219482,0.65983878,107930.0,107920.0,0.08316303]
[1761834219682,0.98491878,107930.0,107920.0,0.08316303]
[1761834220374,0.62411878,107930.0,107920.0,0.08316303]
[1761834220880,0.98491878,107930.0,107920.0,0.08316303]
[1761834221075,0.62411878,107930.0,107920.0,0.08316303]
[1761834221282,0.32512944,107930.0,107920.0,0.08316303]
[1761834221588,0.37512944,107930.0,107920.0,0.08316303]
[1761834222285,0.64646628,107930.0,107920.0,0.08316303]
[1761834222486,0.88818094,107930.0,107920.0,0.08316303]
[1761834222676,1.24898094,107930.0,107920.0,0.08316303]
[1761834223084,1.26813119,107930.0,107920.0,0.01899163]
[1761834223380,1.25813119,107930.0,107920.0,0.01899163]
[1761834224682,1.01641653,107930.0,107920.0,0.08316303]
[1761834224896,1.25813119,107930.0,107920.0,0.03868303]
[1761834225393,1.25813119,107930.0,107920.0,0.01899163]
[1761834225977,1.36089119,107930.0,107920.0,0.01899163]
[1761834226187,1.96089119,107930.0,107920.0,0.01899163]
[1761834226486,1.96089119,107930.0,107900.0,0.05737]
[1761834226687,0.60251466,107910.0,107900.0,0.0770614]
[1761834226983,1.22759466,107910.0,107900.0,0.0325814]
[1761834227379,1.22766962,107910.0,107900.0,0.0325814]
[1761834227587,1.22766962,107910.0,107900.0,0.0405814]
[1761834227781,1.22766962,107910.0,107900.0,0.02089]
[1761834227987,1.22866962,107910.0,107900.0,0.06937]
[1761834228586,1.2499824,107910.0,107900.0,0.06937]
[1761834228786,0.98695496,107910.0,107900.0,0.0890614]
[1761834228993,0.98699496,107910.0,107900.0,0.0890614]
[1761834229190,0.02107496,107910.0,107900.0,0.0890614]
[1761834229390,0.00107496,107910.0,107900.0,0.68357606]
[1761834229593,0.02207496,107910.0,107900.0,0.4488614]
[1761834229891,0.00207496,107910.0,107900.0,0.4488614]
[1761834230289,0.00407496,107910.0,107900.0,1.0418614]
[1761834230488,0.02307496,107910.0,107900.0,0.4406614]
[1761834230689,0.02507496,107910.0,107900.0,0.4378614]
[1761834230889,0.67587496,107910.0,107900.0,0.0770614]
[1761834231093,0.91358962,107910.0,107900.0,0.0770614]
[1761834231293,0.91458962,107910.0,107900.0,0.0770614]
[1761834231596,0.67287496,107910.0,107900.0,0.0770614]
[1761834231795,0.67387496,107910.0,107900.0,0.0770614]
[1761834231987,0.91558962,107910.0,107900.0,0.0770614]
[1761834232191,0.93691879,107910.0,107900.0,0.0770614]
[1761834232904,0.69520413,107910.0,107900.0,0.0770614]
[1761834233096,0.93591879,107910.0,107900.0,0.0770614]
[1761834233296,0.69620413,107910.0,107900.0,0.0770614]
[1761834235089,0.93791879,107910.0,107900.0,0.0770614]
[1761834236896,0.94791879,107910.0,107900.0,0.01289]
[1761834237094,0.9754383,107910.0,107880.0,0.03496]
[1761834237396,0.60251466,107890.0,107880.0,0.0546514]
[1761834237595,0.90261282,107890.0,107880.0,0.0546514]
[1761834237998,0.90261282,107890.0,107880.0,0.0775414]
[1761834238883,0.66089816,107890.0,107880.0,0.0775414]
[1761834239190,0.90261282,107890.0,107880.0,0.0775414]
[1761834239599,0.90261282,107890.0,107880.0,0.0795414]
[1761834240293,0.90261282,107890.0,107880.0,0.0775414]
[1761834240497,0.90261282,107890.0,107880.0,0.05985]
[1761834240701,0.60261282,107890.0,107880.0,0.05985]
[1761834240899,0.36089816,107890.0,107880.0,0.0795414]
[1761834241091,0.88261282,107890.0,107880.0,0.0795414]
[1761834241596,0.89261282,107890.0,107880.0,0.05985]
[1761834241801,1.25621282,107890.0,107880.0,0.002]
[1761834242007,1.27755162,107890.0,107880.0,0.01388]
[1761834242187,1.27475162,107890.0,107880.0,0.01388]
[1761834242391,1.27755162,107890.0,107880.0,0.01388]
[1761834242598,1.27755162,107890.0,107860.0,0.10750344]
[1761834242902,0.96331466,107870.0,107860.0,0.01363]
[1761834243099,1.31343233,107870.0,107860.0,0.06339104]
[1761834243287,1.32505431,107870.0,107860.0,0.06339104]
[1761834243487,1.32505431,107870.0,107860.0,0.04976104]
[1761834243691,1.32493664,107870.0,107860.0,0.02826385]
[1761834243896,1.32213664,107870.0,107860.0,0.02826385]
[1761834244097,1.42213664,107870.0,107860.0,0.02826385]
[1761834244297,1.42493664,107870.0,107860.0,0.02826385]
[1761834244904,1.42213664,107870.0,107860.0,0.02826385]
[1761834245099,1.73213664,107870.0,107860.0,0.02826385]
[1761834245295,1.73593664,107870.0,107860.0,0.02826385]
[1761834245499,1.73693664,107870.0,107860.0,0.02326385]
[1761834245699,2.007045,107870.0,107860.0,0.02326385]
[1761834245997,1.62693664,107870.0,107860.0,0.02326385]
[1761834246308,1.62322003,107870.0,107860.0,0.03714385]
[1761834246491,1.62622003,107870.0,107860.0,0.03714385]
[1761834246890,1.62622003,107870.0,107860.0,0.02326385]
[1761834246891,1.62902003,107870.0,107860.0,0.02326385]
[1761834247100,1.63002003,107870.0,107860.0,0.02326385]
[1761834247307,1.62722003,107870.0,107860.0,0.03714385]
[1761834247498,1.42722003,107870.0,107860.0,0.03714385]
[1761834247918,1.16550537,107870.0,107860.0,0.10105525]
[1761834248106,1.39070537,107870.0,107860.0,0.10105525]
[1761834248700,1.64242003,107870.0,107860.0,0.10105525]
[1761834249099,1.63242003,107870.0,107860.0,0.10105525]
[1761834249494,1.64242003,107870.0,107860.0,0.08136385]
[1761834249689,1.63242003,107870.0,107860.0,0.10105525]
[1761834249895,0.66910537,107870.0,107860.0,0.10105525]
[1761834250198,0.66910537,107870.0,107860.0,0.70105525]
[1761834250389,1.02990537,107870.0,107860.0,0.70105525]
[1761834250589,1.02990537,107870.0,107860.0,0.10105525]
[1761834250590,0.02508339,107870.0,107860.0,0.10105525]
[1761834250803,0.02508339,107870.0,107860.0,0.70105525]
[1761834251002,0.02508339,107870.0,107860.0,0.6777914]
[1761834251200,0.00508339,107870.0,107860.0,0.5313203]
[1761834251402,0.67547157,107900.0,107890.0,0.04422]
[1761834251702,0.85547157,107900.0,107890.0,0.04422]
[1761834251902,0.85547157,107900.0,107890.0,0.64422]
[1761834251903,0.18,107900.0,107890.0,0.64422]
[1761834252104,0.78251466,107900.0,107890.0,0.04422]
[1761834252304,0.18006768,107900.0,107890.0,0.04422]
[1761834252500,0.18606768,107900.0,107890.0,0.04522]
[1761834252700,0.54686768,107900.0,107890.0,0.04522]
[1761834252912,0.18606768,107900.0,107890.0,0.04522]
[1761834253093,0.18806768,107900.0,107890.0,0.04522]
[1761834253290,0.18506768,107900.0,107890.0,0.04422]
[1761834253898,0.20640106,107900.0,107890.0,0.04422]
[1761834254098,0.20640106,107900.0,107890.0,0.40502]
[1761834254308,0.04640106,107900.0,107890.0,0.40782]
[1761834254706,0.02506768,107900.0,107890.0,0.40782]
[1761834255094,0.3608,107920.0,107910.0,0.04253]
[1761834255302,0.996,107920.0,107910.0,0.04253]
[1761834255497,0.31,107920.0,107910.0,0.04253]
[1761834255700,0.92771466,107930.0,107920.0,0.0569]
[1761834255701,0.3252,107930.0,107920.0,0.0569]
[1761834256009,0.996,107930.0,107920.0,0.0569]
[1761834256197,1.23771466,107930.0,107920.0,0.0569]
[1761834257009,1.24171466,107930.0,107920.0,0.0579]
[1761834257917,1.24771466,107930.0,107920.0,0.0579]
[1761834258612,1.26687081,107930.0,107920.0,0.0579]
[1761834258807,1.25687081,107930.0,107920.0,0.0579]
[1761834259202,0.65435615,107930.0,107920.0,0.4187]
[1761834259407,0.03,107930.0,107920.0,0.4187]
[1761834259610,0.34,107930.0,107920.0,0.4187]
[1761834260013,0.01,107930.0,107920.0,0.0579]
[1761834260216,0.31,107930.0,107920.0,0.74386]
[1761834261111,0.31,107930.0,107920.0,2.24386]
[1761834261309,0.55171466,107930.0,107920.0,1.5579]
[1761834261613,0.55171466,107930.0,107920.0,0.0579]
[1761834262110,0.31,107930.0,107920.0,0.4187]
[1761834262315,0.32,107930.0,107920.0,0.4187]
[1761834262922,0.56171466,107930.0,107920.0,0.4187]
[1761834263621,0.32,107930.0,107920.0,0.4187]
[1761834265218,0.35,107930.0,107920.0,0.4187]
[1761834266121,0.37201322,107930.0,107920.0,0.4187]
[1761834266709,0.37201322,107930.0,107920.0,0.42146]
[1761834266710,0.01,107930.0,107920.0,0.42146]
[1761834266905,0.32516,107950.0,107940.0,0.05692]
[1761834267116,1.03770768,107950.0,107940.0,0.05692]
[1761834267312,1.27942234,107950.0,107940.0,0.05692]
[1761834267518,0.91862234,107950.0,107940.0,0.05692]
[1761834267712,1.27942234,107950.0,107940.0,0.05692]
[1761834268110,0.93647049,107950.0,107940.0,0.05792]
[1761834268317,1.29727049,107950.0,107940.0,0.05792]
[1761834268512,0.69475583,107950.0,107940.0,0.05792]
[1761834268718,1.30227049,107950.0,107940.0,0.05892]
[1761834271214,1.06055583,107950.0,107940.0,0.05892]
[1761834271820,0.73539583,107950.0,107940.0,0.05892]
[1761834272322,0.22459583,107950.0,107940.0,0.05892]
[1761834274417,0.21574768,107950.0,107940.0,0.41972]
[1761834274620,0.6858,107960.0,107950.0,0.02185]
[1761834274820,1.02773065,107960.0,107950.0,0.0439]
[1761834275225,0.74773065,107960.0,107950.0,0.0439]
[1761834275424,1.02773065,107960.0,107950.0,0.0439]
[1761834276026,1.03673065,107960.0,107950.0,0.0449]
[1761834276223,0.75673065,107960.0,107950.0,0.0449]
[1761834276530,0.41093065,107960.0,107950.0,0.0459]
[1761834276716,0.679,107960.0,107950.0,0.0459]
[1761834276915,0.94263834,107960.0,107950.0,0.0459]
[1761834277112,0.97643834,107960.0,107950.0,0.0449]
[1761834277313,0.98643834,107960.0,107950.0,0.0449]
[1761834277521,1.1397468,107960.0,107950.0,0.001]
[1761834277715,1.2497468,107960.0,107950.0,0.001]
[1761834277932,1.2447468,107960.0,107940.0,0.03487]
[1761834278130,0.68576,107950.0,107940.0,0.05692]
[1761834278320,0.97576,107950.0,107940.0,0.05692]
[1761834278519,0.32496,107950.0,107940.0,0.05692]
[1761834278722,0.62296,107950.0,107940.0,0.05692]
[1761834278926,0.61896,107950.0,107940.0,0.05692]
[1761834279430,0.97976,107950.0,107940.0,0.05992]
[1761834279630,0.97976,107950.0,107940.0,0.06492]
[1761834281023,0.67976,107950.0,107940.0,0.06492]
[1761834281326,1.02169747,107950.0,107940.0,0.06492]
[1761834281726,0.67976,107950.0,107940.0,0.06492]
[1761834281918,0.6908,107950.0,107940.0,0.06492]
[1761834282118,0.33,107950.0,107940.0,0.06492]
[1761834282419,0.68572,107960.0,107950.0,0.0439]
[1761834282625,1.04765871,107960.0,107950.0,0.0439]
[1761834283730,1.04765871,107960.0,107950.0,0.0459]
[1761834284124,1.04765871,107960.0,107950.0,0.0479]
[1761834285529,1.03765871,107960.0,107950.0,0.0479]
[1761834286029,0.75765871,107960.0,107950.0,0.0479]
[1761834286337,0.66685871,107960.0,107950.0,0.0479]
[1761834286528,0.34685871,107960.0,107950.0,0.0479]
[1761834286835,0.49685871,107960.0,107950.0,0.0479]
[1761834287133,0.61685871,107960.0,107950.0,0.0479]
[1761834287331,0.34686043,107960.0,107950.0,0.0479]
[1761834287530,0.36686043,107960.0,107950.0,0.0479]
[1761834288239,0.68686043,107960.0,107950.0,0.0479]
[1761834291227,0.34686043,107960.0,107950.0,0.0479]
[1761834291425,0.39686043,107960.0,107950.0,0.0479]
[1761834291630,0.39686043,107960.0,107950.0,0.4087]
[1761834291831,0.36686043,107960.0,107950.0,0.4087]
[1761834292026,0.65678043,107960.0,107950.0,0.4087]
[1761834292228,0.65678043,107960.0,107950.0,0.0479]
[1761834293734,0.34678043,107960.0,107950.0,0.0479]
[1761834293932,0.68678043,107960.0,107950.0,0.0479]
[1761834294233,0.68484433,107960.0,107950.0,0.0479]
[1761834294531,0.68484433,107960.0,107920.0,0.51036372]
[1761834294532,1.5983621,107960.0,107920.0,0.10726281]
[1761834294731,0.76582312,107940.0,107920.0,0.10726281]
[1761834294925,0.32484,107930.0,107920.0,0.10726281]
[1761834295131,0.32484,107930.0,107920.0,0.46806281]
[1761834295435,0.44484,107930.0,107920.0,0.46806281]
[1761834295630,0.44484,107930.0,107920.0,0.47206281]
[1761834295831,0.44484,107930.0,107920.0,0.11126281]
[1761834296033,0.34484,107930.0,107920.0,0.47206281]
[1761834296234,0.60484,107930.0,107920.0,0.47206281]
[1761834296737,0.61540713,107930.0,107920.0,0.47406281]
[1761834297131,0.61540713,107930.0,107920.0,0.47006281]
[1761834297324,0.34484,107930.0,107920.0,0.46806281]
[1761834297736,0.02,107930.0,107920.0,0.46806281]
[1761834297936,0.68564,107940.0,107930.0,0.0447]
[1761834298231,1.02564,107940.0,107930.0,0.0447]
[1761834298626,0.97564,107940.0,107930.0,0.0447]
[1761834299836,0.62550025,107940.0,107930.0,0.0447]
[1761834300240,0.66550025,107940.0,107930.0,0.4055]
[1761834300735,1.02630025,107940.0,107930.0,0.0447]
[1761834300936,1.43132337,107940.0,107930.0,0.0447]
[1761834301126,1.43132337,107940.0,107920.0,0.41917]
[1761834301440,0.02493465,107950.0,107940.0,0.05831]
[1761834301643,0.34977465,107960.0,107950.0,0.0447]
[1761834301937,0.50977465,107960.0,107950.0,0.0447]
[1761834302341,0.06493465,107960.0,107950.0,0.4055]
[1761834302535,0.04493465,107960.0,107950.0,0.4055]
[1761834302737,0.06493465,107960.0,107950.0,0.4055]
[1761834303134,0.04493465,107960.0,107950.0,0.4055]
[1761834303329,0.35493465,107960.0,107950.0,0.0447]
[1761834303531,0.36543386,107960.0,107950.0,0.0447]
[1761834303940,0.10543386,107960.0,107950.0,0.0447]
[1761834304143,0.08543386,107960.0,107950.0,0.0467]
[1761834304328,0.35543386,107960.0,107950.0,0.0467]
[1761834304735,1.1645093,107960.0,107950.0,0.002]
[1761834304933,1.13957465,107960.0,107950.0,0.002]
[1761834305134,1.12957465,107960.0,107950.0,0.002]
[1761834305335,1.73957465,107960.0,107950.0,0.002]
[1761834305540,1.14233465,107960.0,107950.0,0.003]
[1761834305843,1.13957465,107960.0,107950.0,0.003]
[1761834306144,1.22957465,107960.0,107950.0,0.003]
[1761834306344,1.09636382,107960.0,107950.0,0.0457]
[1761834306841,1.09836382,107960.0,107950.0,0.0447]
[1761834307043,1.50338694,107960.0,107950.0,0.02323]
[1761834307236,1.50338711,107960.0,107940.0,0.05831]
[1761834307839,1.50338711,107960.0,107950.0,0.0447]
[1761834308038,1.09836399,107960.0,107950.0,0.0447]
[1761834308340,1.51338711,107960.0,107940.0,0.05831]
[1761834308547,0.79081419,107950.0,107940.0,0.01361]
[1761834308743,1.14283558,107950.0,107940.0,0.01361]
[1761834309243,0.73781246,107950.0,107940.0,0.05831]
[1761834309447,0.35202139,107950.0,107940.0,0.05831]
[1761834310147,0.04202139,107950.0,107940.0,0.41911]
[1761834310745,0.30202139,107950.0,107940.0,0.05831]
[1761834311051,0.04202139,107950.0,107940.0,0.05831]
[1761834311552,0.33202139,107950.0,107940.0,0.05831]
[1761834311842,0.02202139,107950.0,107940.0,0.42111]
[1761834312045,0.39629028,107960.0,107950.0,0.0447]
[1761834312046,0.02499107,107960.0,107950.0,0.0447]
[1761834312239,0.34677754,107960.0,107950.0,0.4055]
[1761834312632,0.36677754,107960.0,107950.0,0.4055]
[1761834312834,0.04201754,107960.0,107950.0,0.4055]
[1761834313433,0.05281103,107960.0,107950.0,0.4055]
[1761834313640,0.04201754,107960.0,107950.0,0.4055]
[1761834313844,0.06700861,107960.0,107950.0,0.4055]
[1761834314039,0.04201754,107960.0,107950.0,0.4055]
[1761834314639,0.07201754,107960.0,107950.0,0.4055]
[1761834314934,0.04201754,107960.0,107950.0,0.4055]
[1761834315338,0.31201754,107960.0,107950.0,0.0447]
[1761834315535,0.31201754,107960.0,107950.0,0.4055]
[1761834315739,0.07201754,107960.0,107950.0,0.4055]
[1761834315941,0.04201754,107960.0,107950.0,0.4055]
[1761834316144,0.32476,107970.0,107960.0,0.05913]
[1761834316341,0.68552,107980.0,107970.0,0.04551]
[1761834316538,0.97630236,107980.0,107970.0,0.04551]
[1761834317052,1.00129343,107980.0,107970.0,0.04551]
[1761834317653,1.00329343,107980.0,107970.0,0.04551]
[1761834317950,1.41231655,107980.0,107970.0,0.02322]
[1761834318153,1.41231655,107980.0,107960.0,0.01268]
[1761834318154,1.41231655,107980.0,107960.0,0.05819]
[1761834318341,0.3608,107970.0,107960.0,0.05819]
[1761834318655,0.02,107970.0,107960.0,0.05819]
[1761834318855,0.62468,107970.0,107960.0,0.05819]
[1761834319053,0.98548,107970.0,107960.0,0.05819]
[1761834319243,0.32468,107970.0,107960.0,0.41899]
[1761834319452,0.34468,107970.0,107960.0,0.41899]
[1761834319947,0.63468,107970.0,107960.0,0.41899]
[1761834320254,0.34468,107970.0,107960.0,0.41899]
[1761834320654,0.60468,107970.0,107960.0,0.05819]
[1761834321256,0.64468,107970.0,107960.0,0.05819]
[1761834321456,0.72502312,107970.0,107960.0,0.05819]
[1761834321655,0.32,107970.0,107960.0,0.05819]
[1761834322356,0.31951614,107970.0,107960.0,0.05819]
[1761834322551,0.72453926,107970.0,107960.0,0.05819]
[1761834323055,0.72553926,107970.0,107960.0,0.05819]
[1761834323260,1.08833926,107970.0,107960.0,0.03497]
[1761834323458,1.10109926,107970.0,107940.0,0.42430281]
[1761834323757,0.40502312,107950.0,107940.0,0.41845]
[1761834323967,0.32,107950.0,107940.0,0.41845]
[1761834324756,0.32,107950.0,107940.0,0.42145]
[1761834324956,0.32,107950.0,107940.0,0.06065]
[1761834326364,0.68544,107960.0,107950.0,0.04404]
[1761834326560,0.31,107960.0,107950.0,0.04404]
[1761834327061,0.63464,107960.0,107950.0,0.04404]
[1761834327456,0.63664,107960.0,107950.0,0.04404]
[1761834327867,0.63764,107960.0,107950.0,0.04404]
[1761834328166,1.06464955,107960.0,107950.0,0.04404]
[1761834328365,1.42544955,107960.0,107950.0,0.04404]
[1761834328565,1.42544955,107960.0,107940.0,0.05765]
[1761834328756,0.3608,107950.0,107940.0,0.05765]
[1761834328959,0.6708,107950.0,107940.0,0.05765]
[1761834329157,0.69278942,107950.0,107940.0,0.05765]
[1761834329666,0.63464,107950.0,107940.0,0.41845]
[1761834329960,0.38579107,107970.0,107940.0,0.41845]
[1761834330163,0.02198934,107970.0,107960.0,0.4187]
[1761834330566,0.32464,107980.0,107970.0,0.04404]
[1761834330766,0.02499107,107990.0,107980.0,0.0579]
[1761834330970,0.64959107,107990.0,107980.0,0.0579]
[1761834331857,1.42612952,107990.0,107980.0,0.0579]
[1761834332254,1.42888952,107990.0,107980.0,0.01386]
[1761834332453,1.42612952,107990.0,107980.0,0.03489]
[1761834332654,1.0211064,107990.0,107980.0,0.01386]
[1761834332860,1.43812952,107990.0,107980.0,0.01386]
[1761834333063,1.43812952,107990.0,107980.0,0.0579]
[1761834333262,1.57138184,107990.0,107980.0,0.01386]
[1761834333472,1.0311064,107990.0,107980.0,0.0579]
[1761834334367,1.0211064,107990.0,107980.0,0.0579]
[1761834334766,0.0357064,107990.0,107980.0,0.0579]
[1761834335065,0.17673882,107990.0,107980.0,0.0579]
[1761834335270,0.53753882,107990.0,107980.0,0.0579]
[1761834335568,0.31673882,107990.0,107980.0,0.0579]
[1761834335767,0.67753882,107990.0,107980.0,0.0579]
[1761834335970,1.08256194,107990.0,107980.0,0.0579]
[1761834336470,0.67753882,107990.0,107980.0,0.0579]
[1761834336860,0.67753882,107990.0,107980.0,0.01386]
[1761834337070,0.67753882,107990.0,107980.0,0.0579]
[1761834337980,0.31085999,107990.0,107980.0,0.0579]
[1761834338469,0.12499107,107990.0,107980.0,0.0579]
[1761834338665,0.12499107,107990.0,107980.0,0.4187]
[1761834338871,0.42452,107990.0,107980.0,0.4187]
[1761834339173,0.34452,107990.0,107980.0,0.4187]
[1761834339367,0.32452,107990.0,107980.0,0.4187]
[1761834339569,0.34452,107990.0,107980.0,0.4187]
[1761834339760,0.62452,107990.0,107980.0,0.4187]
[1761834339966,0.64951107,107990.0,107980.0,0.4187]
[1761834340176,0.39951107,107990.0,107980.0,0.4187]
[1761834340560,0.66951107,107990.0,107980.0,0.0579]
[1761834340875,0.51951107,107990.0,107980.0,0.0579]
[1761834341870,1.12166294,107990.0,107980.0,0.0579]
[1761834342574,1.14354152,107990.0,107980.0,0.0579]
[1761834343279,0.90218965,107990.0,107980.0,0.0579]
[1761834343476,0.54138965,107990.0,107980.0,0.0579]
[1761834343679,0.90218965,107990.0,107980.0,0.0579]
[1761834343972,0.54138965,107990.0,107980.0,0.0579]
[1761834344375,0.90218965,107990.0,107980.0,0.0579]
[1761834344870,1.14354152,107990.0,107980.0,0.0579]
[1761834345072,0.90218965,107990.0,107980.0,0.0579]
[1761834345373,0.78274152,107990.0,107980.0,0.0579]
[1761834345879,0.54138965,107990.0,107980.0,0.0579]
[1761834346970,0.90218965,107990.0,107980.0,0.0579]
[1761834347375,1.15354152,107990.0,107980.0,0.01386]
[1761834347572,1.16456277,107990.0,107960.0,0.01386]
[1761834347765,0.60215187,107970.0,107960.0,0.01386]
[1761834347977,1.26847045,107970.0,107960.0,0.01386]
[1761834348279,1.26847045,107970.0,107960.0,0.0579]
[1761834348572,0.70267858,107970.0,107960.0,0.0579]
[1761834348777,1.26847045,107970.0,107960.0,0.0579]
[1761834349072,1.26847045,107970.0,107960.0,0.01386]
[1761834349872,1.27847045,107970.0,107960.0,0.01386]
[1761834350072,1.26847045,107970.0,107960.0,0.01386]
[1761834350380,1.37847045,107970.0,107960.0,0.01386]
[1761834350677,1.76423885,107970.0,107960.0,0.01386]
[1761834351177,1.76699885,107970.0,107940.0,0.05772]
[1761834351368,0.24135187,107950.0,107940.0,0.05772]
[1761834351570,0.89579187,107950.0,107940.0,0.05772]
[1761834351765,0.32444,107950.0,107940.0,0.05772]
[1761834351979,0.34444,107950.0,107940.0,0.05772]
[1761834352176,0.61444,107950.0,107940.0,0.05772]
[1761834352378,0.61444,107950.0,107940.0,0.06272]
[1761834353478,0.85579187,107950.0,107940.0,0.06272]
[1761834354877,0.61444,107950.0,107940.0,0.06072]
[1761834355277,0.61444,107950.0,107940.0,0.05772]
[1761834355477,0.62640666,107950.0,107940.0,0.05772]
[1761834355876,0.33640666,107950.0,107940.0,0.41852]
[1761834356072,0.3608,107970.0,107960.0,0.05741]
[1761834356376,1.04712228,107970.0,107960.0,0.05741]
[1761834357274,1.05892542,107970.0,107960.0,0.05741]
[1761834357976,1.30027729,107970.0,107960.0,0.05741]
[1761834358177,1.30427729,107970.0,107960.0,0.05741]
[1761834358379,1.06292542,107970.0,107960.0,0.05741]
[1761834358678,1.06492542,107970.0,107960.0,0.05741]
[1761834360879,0.70412542,107970.0,107960.0,0.05741]
[1761834361074,0.04788228,107970.0,107960.0,0.41821]
[1761834361277,0.02788228,107970.0,107960.0,0.66232187]
[1761834361467,0.06788228,107970.0,107960.0,0.41821]
[1761834361666,0.04788228,107970.0,107960.0,0.41821]
[1761834362071,0.02788228,107970.0,107960.0,0.41821]
[1761834362266,0.02788228,107970.0,107960.0,1.02097]
[1761834362473,0.32444,107980.0,107960.0,1.21821187]
[1761834362679,0.34444,107980.0,107970.0,0.40491]
[1761834363382,0.49604137,107980.0,107970.0,0.04411]
[1761834363583,0.86739324,107980.0,107970.0,0.04411]
[1761834363777,0.86939324,107980.0,107970.0,0.04411]
[1761834364081,0.62804137,107980.0,107970.0,0.04411]
[1761834364274,0.62804137,107980.0,107970.0,0.40491]
[1761834364275,0.003,107980.0,107970.0,0.40491]
[1761834364473,0.005,107980.0,107970.0,0.64626187]
[1761834364676,0.025,107980.0,107970.0,0.64626187]
[1761834365180,0.023,107980.0,107970.0,0.64626187]
[1761834365384,0.027,107980.0,107970.0,0.40491]
[1761834365573,0.54835187,107980.0,107970.0,0.40491]
[1761834365780,0.307,107980.0,107970.0,0.04411]